[Event "Groningen Festival 2018"]
[Site "Groningen"]
[Date "2018.12.27"]
[Round "6"]
[White "Tiviakov, Sergei"]
[Black "Kislinsky, Alexey"]
[Result "1-0"]
[ECO "B51"]
[WhiteElo "2613"]
[BlackElo "2425"]
[Annotator "RC"]
[PlyCount "73"]
[EventDate "2018.12.22"]
[EventType "swiss"]
[EventCountry "NED"]
[SourceTitle "playchess.com"]
[Source "ChessBase"]
[SourceQuality "1"]
[TimeControl "40/5400+30:1800+30"]

1. e4 {[%emt 0:00:00]} c5 {[%emt 0:00:00]} 2. Nf3 {[%emt 0:00:00]} d6 {[%emt 0:00:45]} 3. Bb5+ {[%emt 0:00:00]} Nc6 {[%emt 0:00:16]} 4. O-O {[%emt 0:00:00]} Bd7 {[%emt 0:00:17]} 5. Re1 {[%emt 0:00:00]} Nf6 {[%emt 0:00:22]} 6. c3 {[%emt 0:00:05]} a6 {[%emt 0:00:05]} 7. Ba4 {[%emt 0:00:56]} b5 {[%emt 0:02:05]} 8. Bc2 {[%emt 0:00:05]} Bg4 {[%emt 0:00:58]} 9. h3 {[%emt 0:00:43]} Bxf3 {[%emt 0:00:41]} 10. Qxf3 {[%emt 0:00:05]} g6 {[%emt 0:02:08]} 11. d3 {[%emt 0:00:43]} Bg7 {[%emt 0:00:17]} 12. Be3 {[%emt 0:01:30]} Nd7 {[%emt 0:04:01]} 13. a3 {[%emt 0:02:17]} O-O {[%emt 0:01:05]} 14. Nd2 {[%emt 0:00:06]} Nb6 {[%emt 0:01:03]} 15. Qe2 {[%emt 0:07:05]} a5 {[%emt 0:05:56]} 16. Nf3 {[%emt 0:01:35]} a4 {[%emt 0:02:24]} 17. e5 {[%emt 0:07:21]} Nd5 {[%emt 0:06:22]} 18. exd6 {[%emt 0:00:35]} Qxd6 {[%emt 0:03:23]} 19. Ng5 {[%emt 0:22:22]} f5 {[%emt 0:05:55]} 20. Rad1 {[%emt 0:03:51]} Nxe3 {[%emt 0:02:07]} 21. fxe3 {[%emt 0:03:35]} h6 {[%emt 0:10:15]} 22. Nf3 {[%emt 0:00:25]} e5 {[%emt 0:02:47]} 23. e4 {[%emt 0:01:16]} f4 {[%emt 0:06:51]} 24. d4 {[%emt 0:02:07]} c4 {[%emt 0:02:22]} 25. dxe5 {[%emt 0:01:01]} Qc5+ {[%emt 0:10:00]} 26. Kh1 {[%emt 0:07:29]} Ne7 {[%emt 0:09:46]} 27. Rd5 {[%emt 0:07:08]} Nxd5 {[%emt 0:05:50]} 28. exd5 {[%emt 0:00:03]} Qxd5 {[%emt 0:00:37]} 29. Be4 {[%emt 0:01:08]} Qd8 {[%emt 0:01:39]} 30. Rd1 {[%emt 0:01:21]} Qe8 {[%emt 0:00:42]} 31. Bxa8 {[%emt 0:00:10]} Qxa8 {[%emt 0:00:03]} 32. Rd6 {[%emt 0:00:14]} g5 {[%emt 0:01:08]} 33. e6 {[%emt 0:00:40]} Re8 {[%emt 0:00:54]} 34. e7 {[%emt 0:12:24]} Qc8 {[%emt 0:00:10]} 35. Qe4 {[%emt 0:00:30]} Qc7 {[%emt 0:04:31]} 36. Qe6+ {[%emt 0:00:13]} Kh7 {[%emt 0:00:25]} 37. Qg6+ {[%emt 0:00:08]} 1-0

[Event "Groningen Festival 2018"]
[Site "Groningen"]
[Date "2018.12.27"]
[Round "6"]
[White "Ernst, Sipke"]
[Black "Ladva, Ottomar"]
[Result "1/2-1/2"]
[ECO "C42"]
[WhiteElo "2539"]
[BlackElo "2497"]
[Annotator "ChessBase"]
[PlyCount "75"]
[EventDate "2018.12.22"]
[EventType "swiss"]
[EventCountry "NED"]
[SourceTitle "playchess.com"]
[Source "ChessBase"]
[SourceQuality "1"]
[TimeControl "40/5400+30:1800+30"]

1. e4 {[%emt 0:00:00]} e5 {[%emt 0:00:00]} 2. Nf3 {[%emt 0:00:00]} Nf6 {[%emt 0:00:00]} 3. Nxe5 {[%emt 0:00:00]} d6 {[%emt 0:00:00]} 4. Nf3 {[%emt 0:00:02]} Nxe4 {[%emt 0:00:00]} 5. Bd3 {[%emt 0:00:02]} Nf6 {[%emt 0:00:19]} 6. h3 {[%emt 0:08:48]} Be7 {[%emt 0:04:40]} 7. c3 {[%emt 0:03:43]} O-O {[%emt 0:00:32]} 8. Bc2 {[%emt 0:00:12]} d5 {[%emt 0:01:50]} 9. O-O {[%emt 0:02:36]} Re8 {[%emt 0:01:54]} 10. d4 {[%emt 0:04:04]} Bd6 {[%emt 0:00:54]} 11. Nbd2 {[%emt 0:08:36]} Nbd7 {[%emt 0:13:01]} 12. Re1 {[%emt 0:07:06]} c6 {[%emt 0:01:26]} 13. Re2 {[%emt 0:05:55]} h6 {[%emt 0:12:26]} 14. Qe1 {[%emt 0:03:09]} Rxe2 {[%emt 0:00:26]} 15. Qxe2 {[%emt 0:00:05]} Qe7 {[%emt 0:01:26]} 16. Qxe7 {[%emt 0:00:42]} Bxe7 {[%emt 0:00:02]} 17. Nf1 {[%emt 0:00:22]} Bd6 {[%emt 0:07:28]} 18. Ne3 {[%emt 0:02:49]} g6 {[%emt 0:05:41]} 19. c4 {[%emt 0:03:14]} Kg7 {[%emt 0:04:08]} 20. Bd2 {[%emt 0:03:24]} dxc4 {[%emt 0:06:09]} 21. Nxc4 {[%emt 0:00:07]} Bc7 {[%emt 0:00:37]} 22. Re1 {[%emt 0:06:54]} Nd5 {[%emt 0:02:54]} 23. g4 {[%emt 0:06:37]} N7f6 {[%emt 0:01:17]} 24. Nfe5 {[%emt 0:05:39]} g5 {[%emt 0:03:08]} 25. b4 {[%emt 0:04:18]} Be6 {[%emt 0:02:36]} 26. Na5 {[%emt 0:00:15]} Rb8 {[%emt 0:03:48]} 27. a3 {[%emt 0:04:00]} Bb6 {[%emt 0:02:18]} 28. Nb3 {[%emt 0:00:24]} Nc7 {[%emt 0:02:29]} 29. Nc5 {[%emt 0:08:31]} Nb5 {[%emt 0:01:02]} 30. Nxe6+ {[%emt 0:02:30]} fxe6 {[%emt 0:00:01]} 31. Nf3 {[%emt 0:02:01]} Re8 {[%emt 0:01:52]} 32. Bb3 {[%emt 0:02:56]} Nd5 {[%emt 0:01:03]} 33. Bc1 {[%emt 0:01:30]} Rf8 {[%emt 0:02:59]} 34. Kg2 {[%emt 0:00:35]} Nf4+ {[%emt 0:10:03]} 35. Bxf4 {[%emt 0:01:01]} Rxf4 {[%emt 0:00:02]} 36. Bxe6 {[%emt 0:01:19]} Nxd4 {[%emt 0:01:45]} 37. Nxd4 {[%emt 0:00:08]} Bxd4 {[%emt 0:00:05]} 38. Re2 {[%emt 0:00:17]} 1/2-1/2

[Event "Groningen Festival 2018"]
[Site "Groningen"]
[Date "2018.12.27"]
[Round "6"]
[White "Pruijssers, Roeland"]
[Black "Lahaye, Rick"]
[Result "1-0"]
[ECO "B51"]
[WhiteElo "2520"]
[BlackElo "2404"]
[Annotator "ChessBase"]
[PlyCount "89"]
[EventDate "2018.12.22"]
[EventType "swiss"]
[EventCountry "NED"]
[SourceTitle "playchess.com"]
[Source "ChessBase"]
[SourceQuality "1"]
[TimeControl "40/5400+30:1800+30"]

1. e4 {[%emt 0:00:00]} c5 {[%emt 0:00:00]} 2. Nf3 {[%emt 0:00:00]} d6 {[%emt 0:00:07]} 3. Bb5+ {[%emt 0:00:07]} Nd7 {[%emt 0:00:26]} 4. O-O {[%emt 0:01:50]} Ngf6 {[%emt 0:00:10]} 5. Re1 {[%emt 0:00:38]} a6 {[%emt 0:00:10]} 6. Bf1 {[%emt 0:00:22]} b6 {[%emt 0:00:10]} 7. d4 {[%emt 0:01:39]} cxd4 {[%emt 0:00:38]} 8. Nxd4 {[%emt 0:00:23]} Bb7 {[%emt 0:01:39]} 9. f3 {[%emt 0:00:10]} e6 {[%emt 0:00:47]} 10. c4 {[%emt 0:00:07]} Be7 {[%emt 0:00:33]} 11. Nc3 {[%emt 0:05:45]} Rc8 {[%emt 0:01:25]} 12. Be3 {[%emt 0:04:29]} O-O {[%emt 0:03:16]} 13. Rc1 {[%emt 0:06:36]} Qc7 {[%emt 0:02:26]} 14. a3 {[%emt 0:09:08]} Qb8 {[%emt 0:04:04]} 15. b4 {[%emt 0:00:25]} Bd8 {[%emt 0:00:10]} 16. Kh1 {[%emt 0:04:57]} Kh8 {[%emt 0:04:28]} 17. Qd2 {[%emt 0:04:00]} Rg8 {[%emt 0:01:17]} 18. Rc2 {[%emt 0:11:42]} g5 {[%emt 0:15:55]} 19. Bxg5 {[%emt 0:16:03]} Nxe4 {[%emt 0:00:36]} 20. Nxe4 {[%emt 0:00:10]} Bxe4 {[%emt 0:00:07]} 21. Bxd8 {[%emt 0:09:29]} Bxc2 {[%emt 0:00:57]} 22. Be7 {[%emt 0:00:06]} Bg6 {[%emt 0:08:40]} 23. Nxe6 {[%emt 0:00:48]} fxe6 {[%emt 0:04:51]} 24. Rxe6 {[%emt 0:00:25]} Rce8 {[%emt 0:06:38]} 25. c5 {[%emt 0:04:23]} bxc5 {[%emt 0:00:29]} 26. bxc5 {[%emt 0:00:03]} Bf5 {[%emt 0:18:42]} 27. Bxd6 {[%emt 0:02:02]} Bxe6 {[%emt 0:01:34]} 28. Bxb8 {[%emt 0:00:30]} Nxb8 {[%emt 0:01:21]} 29. Qd4+ {[%emt 0:04:07]} Rg7 {[%emt 0:00:21]} 30. h4 {[%emt 0:00:54]} Bc8 {[%emt 0:07:06]} 31. Bc4 {[%emt 0:05:12]} Nc6 {[%emt 0:05:57]} 32. Qf6 {[%emt 0:00:16]} Ne5 {[%emt 0:00:45]} 33. h5 {[%emt 0:01:49]} Nd7 {[%emt 0:02:33]} 34. Qh4 {[%emt 0:05:04]} Rf8 {[%emt 0:04:08]} 35. h6 {[%emt 0:02:10]} Rg6 {[%emt 0:00:28]} 36. Bd3 {[%emt 0:00:07]} Rgf6 {[%emt 0:01:46]} 37. Qd4 {[%emt 0:01:02]} Re8 {[%emt 0:03:08]} 38. Bf5 {[%emt 0:00:52]} Ne5 {[%emt 0:00:33]} 39. Bxc8 {[%emt 0:00:15]} Rxc8 {[%emt 0:00:26]} 40. Qxe5 {[%emt 0:00:07]} Rcf8 {[%emt 0:00:03]} 41. Kg1 {[%emt 0:30:53]} Kg8 {[%emt 0:30:03]} 42. Qd5+ {[%emt 0:00:22]} Kh8 {[%emt 0:00:27]} 43. Qd4 {[%emt 0:00:00]} Kg8 {[%emt 0:00:00]} 44. c6 {[%emt 0:00:00]} R6f7 {[%emt 0:00:00]} 45. Qc4 {[%emt 0:00:00]} 1-0

[Event "Groningen Festival 2018"]
[Site "Groningen"]
[Date "2018.12.27"]
[Round "6"]
[White "Ulybin, Mikhail"]
[Black "Krasenkow, Michal"]
[Result "1/2-1/2"]
[ECO "D30"]
[WhiteElo "2482"]
[BlackElo "2630"]
[Annotator "RC"]
[PlyCount "135"]
[EventDate "2018.12.22"]
[EventType "swiss"]
[EventCountry "NED"]
[SourceTitle "playchess.com"]
[Source "ChessBase"]
[SourceQuality "1"]
[TimeControl "40/5400+30:1800+30"]

1. d4 {[%emt 0:00:39]} d5 {[%emt 0:00:00]} 2. c4 {[%emt 0:01:30]} e6 {[%emt 0:00:00]} 3. Nf3 {[%emt 0:01:31]} c6 {[%emt 0:00:00]} 4. Qc2 {[%emt 0:07:47]} Nd7 {[%emt 0:03:31]} 5. g3 {[%emt 0:02:19]} dxc4 {[%emt 0:04:54]} 6. Nbd2 {[%emt 0:08:30]} b5 {[%emt 0:03:12]} 7. b3 {[%emt 0:01:30]} cxb3 {[%emt 0:00:46]} 8. Qxc6 {[%emt 0:06:27]} Rb8 {[%emt 0:00:16]} 9. axb3 {[%emt 0:08:58]} Bb7 {[%emt 0:00:49]} 10. Qc2 {[%emt 0:01:02]} Qb6 {[%emt 0:00:23]} 11. Bg2 {[%emt 0:02:19]} Ngf6 {[%emt 0:01:57]} 12. O-O {[%emt 0:01:22]} Bb4 {[%emt 0:01:54]} 13. Ba3 {[%emt 0:07:39]} Bxa3 {[%emt 0:04:23]} 14. Rxa3 {[%emt 0:00:15]} O-O {[%emt 0:00:23]} 15. b4 {[%emt 0:03:45]} Qd6 {[%emt 0:08:14]} 16. Qb1 {[%emt 0:15:57]} a6 {[%emt 0:14:43]} 17. e4 {[%emt 0:02:12]} Qe7 {[%emt 0:00:49]} 18. e5 {[%emt 0:12:25]} Nd5 {[%emt 0:00:21]} 19. Rb3 {[%emt 0:00:57]} N5b6 {[%emt 0:02:32]} 20. Ne4 {[%emt 0:02:40]} Bxe4 {[%emt 0:03:29]} 21. Qxe4 {[%emt 0:00:10]} Nd5 {[%emt 0:00:13]} 22. Qb1 {[%emt 0:04:25]} N7b6 {[%emt 0:03:48]} 23. Ne1 {[%emt 0:03:25]} Rfc8 {[%emt 0:01:14]} 24. Nd3 {[%emt 0:01:09]} Rc4 {[%emt 0:02:19]} 25. Bxd5 {[%emt 0:02:02]} Nxd5 {[%emt 0:00:19]} 26. Qb2 {[%emt 0:00:34]} Qg5 {[%emt 0:06:16]} 27. Nc5 {[%emt 0:01:06]} Qf5 {[%emt 0:01:34]} 28. Qd2 {[%emt 0:00:48]} Ra8 {[%emt 0:02:17]} 29. Rc1 {[%emt 0:00:30]} h5 {[%emt 0:00:51]} 30. Kg2 {[%emt 0:00:31]} Rxc1 {[%emt 0:03:28]} 31. Qxc1 {[%emt 0:00:04]} a5 {[%emt 0:00:06]} 32. bxa5 {[%emt 0:00:46]} Rxa5 {[%emt 0:00:18]} 33. Qb1 {[%emt 0:00:35]} Qg4 {[%emt 0:04:54]} 34. Ne4 {[%emt 0:00:30]} b4 {[%emt 0:04:47]} 35. f3 {[%emt 0:00:33]} Qf5 {[%emt 0:00:34]} 36. h4 {[%emt 0:00:31]} Ra8 {[%emt 0:02:43]} 37. Qc2 {[%emt 0:00:30]} Ra1 {[%emt 0:05:58]} 38. Kh2 {[%emt 0:00:27]} Ra8 {[%emt 0:07:52]} 39. Kg2 {[%emt 0:00:33]} Qh7 {[%emt 0:03:12]} 40. Kh2 {[%emt 0:00:29]} Kh8 {[%emt 0:00:09]} 41. Rb2 {[%emt 0:15:59]} Qg8 {[%emt 0:01:41]} 42. Nd6 {[%emt 0:03:21]} Ra7 {[%emt 0:05:17]} 43. Qc1 {[%emt 0:01:46]} Qa8 {[%emt 0:09:16]} 44. Qg5 {[%emt 0:09:40]} Kg8 {[%emt 0:01:36]} 45. Qxh5 {[%emt 0:00:44]} Qc6 {[%emt 0:01:51]} 46. Qg5 {[%emt 0:01:15]} Ra8 {[%emt 0:08:50]} 47. Ne4 {[%emt 0:00:36]} Kf8 {[%emt 0:03:52]} 48. h5 {[%emt 0:00:31]} Qc4 {[%emt 0:01:24]} 49. h6 gxh6 {[%emt 0:00:00]} 50. Qxh6+ {[%emt 0:00:58]} Ke7 {[%emt 0:00:01]} 51. Qg5+ {[%emt 0:00:38]} Kd7 {[%emt 0:00:00]} 52. Qg7 {[%emt 0:00:29]} Kc6 {[%emt 0:03:37]} 53. Rd2 {[%emt 0:00:35]} Qc1 {[%emt 0:00:42]} 54. Kh3 {[%emt 0:00:27]} Ne3 {[%emt 0:01:10]} 55. d5+ {[%emt 0:00:18]} Kb6 {[%emt 0:00:23]} 56. Qf6 {[%emt 0:00:28]} Qh1+ {[%emt 0:01:22]} 57. Rh2 {[%emt 0:00:05]} Qf1+ {[%emt 0:00:04]} 58. Kh4 {[%emt 0:00:08]} Nf5+ {[%emt 0:00:11]} 59. Kg4 {[%emt 0:00:21]} Rg8+ {[%emt 0:01:16]} 60. Ng5 {[%emt 0:01:08]} Qg1 {[%emt 0:00:59]} 61. dxe6 {[%emt 0:00:35]} Ne3+ {[%emt 0:00:51]} 62. Kh3 {[%emt 0:00:10]} Rg6 {[%emt 0:00:27]} 63. Qd8+ {[%emt 0:00:49]} Kb5 {[%emt 0:00:17]} 64. Qd3+ {[%emt 0:00:46]} Kb6 {[%emt 0:00:00]} 65. Qd6+ {[%emt 0:00:39]} Kb5 {[%emt 0:00:14]} 66. Qd3+ {[%emt 0:00:20]} Kb6 {[%emt 0:00:04]} 67. Qd6+ {[%emt 0:00:34]} Kb5 {[%emt 0:00:01]} 68. Qd3+ {[%emt 0:00:26]} 1/2-1/2

[Event "Groningen Festival 2018"]
[Site "Groningen"]
[Date "2018.12.27"]
[Round "6"]
[White "Schoppen, Casper"]
[Black "Vrolijk, Liam"]
[Result "1/2-1/2"]
[ECO "B94"]
[WhiteElo "2431"]
[BlackElo "2440"]
[Annotator "NA"]
[PlyCount "68"]
[EventDate "2018.12.22"]
[EventType "swiss"]
[EventCountry "NED"]
[SourceTitle "playchess.com"]
[Source "ChessBase"]
[SourceQuality "1"]
[TimeControl "40/5400+30:1800+30"]

1. e4 {[%emt 0:00:00]} c5 {[%emt 0:00:00]} 2. Nf3 {[%emt 0:00:00]} d6 {[%emt 0:00:06]} 3. d4 {[%emt 0:00:03]} cxd4 {[%emt 0:00:09]} 4. Nxd4 {[%emt 0:00:04]} Nf6 {[%emt 0:00:09]} 5. Nc3 {[%emt 0:00:07]} a6 {[%emt 0:00:06]} 6. Bg5 {[%emt 0:00:47]} Nbd7 {[%emt 0:00:22]} 7. Qe2 {[%emt 0:00:40]} h6 {[%emt 0:00:23]} 8. Bh4 {[%emt 0:00:04]} g6 {[%emt 0:00:09]} 9. f4 {[%emt 0:00:38]} e5 {[%emt 0:00:44]} 10. fxe5 {[%emt 0:00:04]} dxe5 {[%emt 0:00:07]} 11. O-O-O {[%emt 0:00:10]} Qc7 {[%emt 0:00:55]} 12. Nb3 {[%emt 0:00:07]} b5 {[%emt 0:00:35]} 13. Nd5 {[%emt 0:00:14]} Nxd5 {[%emt 0:00:18]} 14. exd5 {[%emt 0:00:04]} Bd6 {[%emt 0:00:22]} 15. Qd2 {[%emt 0:00:09]} Kf8 {[%emt 0:00:39]} 16. g4 {[%emt 0:00:45]} a5 {[%emt 0:01:50]} 17. Qe3 {[%emt 0:01:17]} Nb6 {[%emt 0:06:00]} 18. Bxb5 {[%emt 0:02:53]} a4 {[%emt 0:01:39]} 19. Nd4 {[%emt 0:01:36]} Bxg4 {[%emt 0:16:28]} 20. Qe4 {[%emt 0:01:38]} Bxd1 {[%emt 0:10:04]} 21. Ne6+ {[%emt 0:00:17]} fxe6 {[%emt 0:00:08]} 22. Rxd1 {[%emt 0:00:06]} Rh7 {[%emt 0:04:17]} 23. Qxg6 {[%emt 0:02:09]} e4 {[%emt 0:09:56]} 24. dxe6 {[%emt 0:00:26]} Rg7 {[%emt 0:01:58]} 25. Qxe4 {[%emt 0:03:05]} Be7 {[%emt 0:05:48]} 26. Bg3 {[%emt 0:01:09]} Qc5 {[%emt 0:04:35]} 27. Be5 {[%emt 0:13:43]} Qxb5 {[%emt 0:07:59]} 28. h4 {[%emt 0:05:26]} Rd8 {[%emt 0:05:00]} 29. Qf3+ {[%emt 0:01:24]} Kg8 {[%emt 0:00:28]} 30. Rxd8+ {[%emt 0:00:08]} Bxd8 {[%emt 0:00:09]} 31. Bxg7 {[%emt 0:00:04]} Kxg7 {[%emt 0:01:19]} 32. Qf7+ {[%emt 0:00:07]} Kh8 {[%emt 0:00:09]} 33. Qf8+ {[%emt 0:00:11]} Kh7 {[%emt 0:00:08]} 34. Qf7+ {[%emt 0:00:08]} Kh8 {[%emt 0:00:07]} 1/2-1/2

[Event "Groningen Festival 2018"]
[Site "Groningen"]
[Date "2018.12.27"]
[Round "6"]
[White "Grooten, Herman"]
[Black "Hovsepyan, Vardan"]
[Result "1-0"]
[ECO "A90"]
[WhiteElo "2374"]
[BlackElo "2264"]
[Annotator "NA"]
[PlyCount "131"]
[EventDate "2018.12.22"]
[EventType "swiss"]
[EventCountry "NED"]
[SourceTitle "playchess.com"]
[Source "ChessBase"]
[SourceQuality "1"]
[TimeControl "40/5400+30:1800+30"]

1. d4 {[%emt 0:00:00]} e6 {[%emt 0:00:00]} 2. c4 {[%emt 0:00:00]} f5 {[%emt 0:00:04]} 3. g3 {[%emt 0:00:08]} Nf6 {[%emt 0:00:10]} 4. Bg2 {[%emt 0:00:09]} Bb4+ {[%emt 0:00:10]} 5. Bd2 {[%emt 1:32:13]} Bxd2+ {[%emt 0:00:16]} 6. Qxd2 {[%emt 0:00:06]} d6 {[%emt 0:01:19]} 7. Nc3 {[%emt 1:31:51]} O-O {[%emt 0:00:39]} 8. e3 {[%emt 0:04:16]} Nbd7 {[%emt 1:31:22]} 9. Nge2 {[%emt 0:05:15]} e5 {[%emt 0:06:13]} 10. O-O {[%emt 1:23:21]} a5 {[%emt 0:01:49]} 11. Nb5 {[%emt 0:04:31]} Ne8 {[%emt 1:20:27]} 12. c5 {[%emt 0:10:17]} Ra6 {[%emt 0:04:56]} 13. Rac1 {[%emt 1:08:25]} e4 {[%emt 0:05:59]} 14. cxd6 {[%emt 0:08:38]} c6 {[%emt 1:06:47]} 15. Nc7 {[%emt 0:02:29]} Nxc7 {[%emt 0:00:12]} 16. dxc7 {[%emt 0:00:06]} Qxc7 {[%emt 0:00:07]} 17. Nf4 {[%emt 0:03:19]} Nf6 {[%emt 0:01:39]} 18. h4 {[%emt 0:00:23]} Qf7 {[%emt 0:02:47]} 19. Rc5 {[%emt 0:08:33]} Qxa2 {[%emt 0:07:46]} 20. Rfc1 {[%emt 0:01:29]} Rb6 {[%emt 0:00:24]} 21. R5c2 {[%emt 0:43:44]} Qa4 {[%emt 0:06:47]} 22. Bf1 {[%emt 0:37:16]} Qb4 {[%emt 0:02:16]} 23. Ra1 {[%emt 0:36:48]} a4 {[%emt 0:02:49]} 24. Qd1 {[%emt 0:33:25]} Bd7 {[%emt 0:05:15]} 25. Rc4 {[%emt 0:30:33]} Qxb2 {[%emt 0:02:42]} 26. Rcxa4 {[%emt 0:00:34]} g6 {[%emt 0:03:36]} 27. Bc4+ {[%emt 0:04:45]} Kh8 {[%emt 0:01:52]} 28. Ba2 {[%emt 0:22:36]} Ng4 {[%emt 0:05:11]} 29. Ne2 {[%emt 0:03:44]} c5 {[%emt 0:08:35]} 30. Ra7 {[%emt 0:00:54]} Ra6 {[%emt 0:03:15]} 31. Rxa6 {[%emt 0:00:41]} bxa6 {[%emt 0:00:06]} 32. dxc5 {[%emt 0:18:48]} Bb5 {[%emt 0:01:34]} 33. Qd4+ {[%emt 0:00:19]} Qxd4 {[%emt 0:00:07]} 34. Nxd4 {[%emt 0:00:05]} Rc8 {[%emt 0:00:25]} 35. Rc1 {[%emt 0:03:37]} Ne5 {[%emt 0:00:07]} 36. Be6 {[%emt 0:01:42]} Re8 {[%emt 0:02:25]} 37. Nxb5 {[%emt 0:15:15]} Rxe6 {[%emt 0:00:52]} 38. Nd4 {[%emt 0:00:06]} Re8 {[%emt 0:02:12]} 39. c6 {[%emt 0:00:17]} Rc8 {[%emt 0:01:17]} 40. Rc5 {[%emt 0:14:05]} Nd3 {[%emt 0:00:26]} 41. Rd5 {[%emt 0:43:33]} Nb4 {[%emt 0:30:12]} 42. Rd6 {[%emt 0:00:22]} Kg8 {[%emt 0:00:20]} 43. h5 {[%emt 0:04:38]} Kf7 {[%emt 0:05:25]} 44. h6 {[%emt 0:01:12]} Rc7 {[%emt 0:00:44]} 45. g4 {[%emt 0:04:25]} fxg4 {[%emt 0:01:16]} 46. Kg2 {[%emt 0:00:18]} a5 {[%emt 0:02:36]} 47. Kg3 {[%emt 0:04:37]} a4 {[%emt 0:00:24]} 48. Nb5 {[%emt 0:00:52]} Rxc6 {[%emt 0:00:39]} 49. Rd7+ {[%emt 0:01:31]} Kf6 {[%emt 0:00:42]} 50. Rxh7 {[%emt 0:00:00]} Kg5 {[%emt 0:00:00]} 51. Rh8 {[%emt 0:00:00]} Rf6 {[%emt 0:00:00]} 52. Nc3 {[%emt 0:00:00]} Rf3+ {[%emt 0:00:00]} 53. Kg2 {[%emt 0:00:00]} Rf7 {[%emt 0:00:00]} 54. Nxe4+ {[%emt 0:03:08]} Kh4 {[%emt 0:03:49]} 55. Rb8 {[%emt 0:00:30]} Nd3 {[%emt 0:00:00]} 56. Rb1 {[%emt 0:00:00]} Nxf2 {[%emt 0:01:00]} 57. Nxf2 {[%emt 0:00:00]} Kg5 {[%emt 0:00:00]} 58. Rb5+ {[%emt 0:00:00]} Kxh6 {[%emt 0:02:00]} 59. Nxg4+ {[%emt 0:00:00]} Kg7 {[%emt 0:00:00]} 60. Ra5 {[%emt 0:00:00]} Rb7 {[%emt 0:00:00]} 61. Rxa4 {[%emt 0:00:00]} Kf7 {[%emt 0:00:00]} 62. Ra6 {[%emt 0:00:00]} Rb5 {[%emt 0:00:00]} 63. Kf3 {[%emt 0:00:00]} Rf5+ {[%emt 0:04:30]} 64. Ke4 {[%emt 0:00:00]} Rg5 {[%emt 0:00:00]} 65. Ne5+ {[%emt 0:00:00]} Kg7 {[%emt 0:00:00]} 66. Rxg6+ {[%emt 0:00:00]} 1-0

[Event "Groningen Festival 2018"]
[Site "Groningen"]
[Date "2018.12.27"]
[Round "6"]
[White "Maatman, Nick"]
[Black "Plat, Vojtech"]
[Result "1/2-1/2"]
[ECO "D85"]
[WhiteElo "2363"]
[BlackElo "2550"]
[Annotator "ChessBase"]
[PlyCount "91"]
[EventDate "2018.12.22"]
[EventType "swiss"]
[EventCountry "NED"]
[SourceTitle "playchess.com"]
[Source "ChessBase"]
[SourceQuality "1"]
[TimeControl "40/5400+30:1800+30"]

1. d4 {[%emt 0:00:00]} Nf6 {[%emt 0:00:00]} 2. c4 {[%emt 0:00:04]} g6 {[%emt 0:00:00]} 3. Nc3 {[%emt 0:00:05]} d5 {[%emt 0:00:00]} 4. cxd5 {[%emt 0:00:06]} Nxd5 {[%emt 0:00:00]} 5. e4 {[%emt 0:00:05]} Nxc3 {[%emt 0:00:00]} 6. bxc3 {[%emt 0:00:05]} Bg7 {[%emt 0:00:00]} 7. Nf3 {[%emt 0:00:38]} c5 {[%emt 0:00:01]} 8. Be3 {[%emt 0:01:46]} Nc6 {[%emt 0:00:10]} 9. Rc1 {[%emt 0:09:39]} cxd4 {[%emt 0:00:51]} 10. cxd4 {[%emt 0:00:26]} O-O {[%emt 0:00:10]} 11. d5 {[%emt 0:01:40]} Ne5 {[%emt 0:00:46]} 12. Nxe5 {[%emt 0:00:05]} Bxe5 {[%emt 0:00:03]} 13. f4 {[%emt 0:26:46]} Bc7 {[%emt 0:00:04]} 14. Bc4 {[%emt 0:07:21]} Bb6 {[%emt 0:05:50]} 15. Qe2 {[%emt 0:04:31]} Bd7 {[%emt 0:03:22]} 16. O-O {[%emt 0:00:36]} Rc8 {[%emt 0:00:02]} 17. Kh1 {[%emt 0:13:14]} Bxe3 {[%emt 0:00:13]} 18. Qxe3 {[%emt 0:00:03]} Rxc4 {[%emt 0:02:04]} 19. Rxc4 {[%emt 0:00:06]} Bb5 {[%emt 0:00:01]} 20. Qb3 {[%emt 0:06:35]} Qd7 {[%emt 0:00:35]} 21. Rfc1 {[%emt 0:00:51]} Bxc4 {[%emt 0:00:05]} 22. Qxc4 {[%emt 0:00:07]} e6 {[%emt 0:03:07]} 23. dxe6 {[%emt 0:09:26]} fxe6 {[%emt 0:03:35]} 24. g3 {[%emt 0:00:03]} Rd8 {[%emt 0:00:28]} 25. Kg2 {[%emt 0:01:02]} b5 {[%emt 0:00:28]} 26. Qc7 {[%emt 0:05:37]} Qxc7 {[%emt 0:00:21]} 27. Rxc7 {[%emt 0:00:02]} Rd2+ {[%emt 0:00:05]} 28. Kf3 {[%emt 0:00:04]} Rxa2 {[%emt 0:00:07]} 29. Kg4 {[%emt 0:00:58]} h6 {[%emt 0:01:12]} 30. Rb7 {[%emt 0:05:34]} a6 {[%emt 0:00:17]} 31. h4 {[%emt 0:00:13]} Ra3 {[%emt 0:00:24]} 32. h5 {[%emt 0:02:55]} gxh5+ {[%emt 0:00:05]} 33. Kh4 {[%emt 0:00:09]} Kf8 {[%emt 0:01:01]} 34. f5 {[%emt 0:01:53]} exf5 {[%emt 0:00:08]} 35. exf5 {[%emt 0:00:12]} Rf3 {[%emt 0:02:00]} 36. Kxh5 {[%emt 0:00:22]} Rxf5+ {[%emt 0:03:33]} 37. Kxh6 {[%emt 0:00:01]} Rf6+ {[%emt 0:04:46]} 38. Kg5 {[%emt 0:00:34]} Rc6 {[%emt 0:04:57]} 39. g4 {[%emt 0:00:05]} Rc4 {[%emt 0:05:28]} 40. Kf6 {[%emt 0:02:57]} Rf4+ {[%emt 0:03:56]} 41. Kg5 {[%emt 0:30:05]} Rf7 {[%emt 0:34:11]} 42. Rb8+ {[%emt 0:01:05]} Kg7 {[%emt 0:00:48]} 43. Ra8 {[%emt 0:00:24]} b4 {[%emt 0:00:25]} 44. Rxa6 {[%emt 0:00:20]} Rb7 {[%emt 0:00:03]} 45. Ra1 {[%emt 0:01:07]} b3 {[%emt 0:00:11]} 46. Rb1 {[%emt 0:00:57]} 1/2-1/2